[Event "Late-Titled-Tuesday-Blitz-June-18-2024"]
[Site "Chess.com"]
[Date "2024.06.18"]
[Round "4"]
[White "Rashad_Zeynalli"]
[Black "Omranalhosani21"]
[Result "1-0"]
[WhiteElo "2740"]
[BlackElo "2544"]
[TimeControl "180+1"]
[EndTime "14:41:31 PDT"]
[Termination "Rashad_Zeynalli won on time"]

1. d4 {[%clk 0:03:00.9]} 1... Nf6 {[%clk 0:02:51.4]} 2. Bf4 {[%clk 0:03:01.1]}
2... Nd5 {[%clk 0:02:50.9]} 3. Bc1 {[%clk 0:02:59.6]} 3... c5 {[%clk 0:02:50.1]}
4. e4 {[%clk 0:02:52.8]} 4... Nf6 {[%clk 0:02:46.1]} 5. e5 {[%clk 0:02:51.6]}
5... Nd5 {[%clk 0:02:46.3]} 6. dxc5 {[%clk 0:02:41.2]} 6... Qa5+ {[%clk
0:02:29]} 7. Nd2 {[%clk 0:02:41.6]} 7... e6 {[%clk 0:02:21.3]} 8. c3 {[%clk
0:02:40.8]} 8... Qxc5 {[%clk 0:02:07.3]} 9. Ne4 {[%clk 0:02:41.1]} 9... Qc7
{[%clk 0:02:06.4]} 10. Nf3 {[%clk 0:02:41.7]} 10... Nc6 {[%clk 0:02:05.4]} 11.
Bc4 {[%clk 0:02:37.6]} 11... Nxe5 {[%clk 0:02:00.6]} 12. Bxd5 {[%clk 0:02:38]}
12... Nxf3+ {[%clk 0:02:00.2]} 13. gxf3 {[%clk 0:02:36.8]} 13... exd5 {[%clk
0:02:00.5]} 14. Qxd5 {[%clk 0:02:37.2]} 14... d6 {[%clk 0:01:57.3]} 15. Bf4
{[%clk 0:02:36.2]} 15... Be6 {[%clk 0:01:54.7]} 16. Qd4 {[%clk 0:02:35.7]} 16...
Rd8 {[%clk 0:01:47.3]} 17. O-O-O {[%clk 0:02:30.4]} 17... Qa5 {[%clk 0:01:40.8]}
18. a3 {[%clk 0:02:16.1]} 18... Qf5 {[%clk 0:01:17.6]} 19. Bxd6 {[%clk
0:02:07.8]} 19... Qxf3 {[%clk 0:01:11.5]} 20. Rhe1 {[%clk 0:02:05.2]} 20... Bxd6
{[%clk 0:00:50.7]} 21. Nxd6+ {[%clk 0:02:01.6]} 21... Kf8 {[%clk 0:00:50.2]} 22.
Qxa7 {[%clk 0:01:54.7]} 22... Qf4+ {[%clk 0:00:44.9]} 23. Kb1 {[%clk 0:01:52.5]}
23... g6 {[%clk 0:00:24.3]} 24. Nxb7 {[%clk 0:01:51.8]} 24... Rxd1+ {[%clk
0:00:22.4]} 25. Rxd1 {[%clk 0:01:52.7]} 25... Qf5+ {[%clk 0:00:13.6]} 26. Ka1
{[%clk 0:01:51.5]} 26... Kg7 {[%clk 0:00:12.3]} 27. Qd4+ {[%clk 0:01:52]} 27...
f6 {[%clk 0:00:11.9]} 28. Nd6 {[%clk 0:01:49]} 28... Qf3 {[%clk 0:00:11.5]} 29.
Re1 {[%clk 0:01:46.4]} 29... Qh3 {[%clk 0:00:05]} 30. Ne4 {[%clk 0:01:43]} 30...
Qf5 {[%clk 0:00:03.9]} 31. Nxf6 {[%clk 0:01:40.5]} 31... Qxf6 {[%clk 0:00:03.3]}
32. Rxe6 {[%clk 0:01:40.6]} 32... Qxd4 {[%clk 0:00:02.7]} 33. cxd4 {[%clk
0:01:41.5]} 33... Rf8 {[%clk 0:00:03.6]} 34. Re2 {[%clk 0:01:40.7]} 34... Rf3
{[%clk 0:00:02]} 35. Rd2 {[%clk 0:01:37.6]} 35... Rh3 {[%clk 0:00:02.1]} 36. d5
{[%clk 0:01:34.5]} 36... Kf7 {[%clk 0:00:02.2]} 37. d6 {[%clk 0:01:34]} 37...
Ke8 {[%clk 0:00:02.5]} 38. f4 {[%clk 0:01:32.3]} 38... Kd7 {[%clk 0:00:03.1]}
39. a4 {[%clk 0:01:30.1]} 39... Rf3 {[%clk 0:00:02.8]} 40. Ka2 {[%clk
0:01:29.1]} 40... Rxf4 {[%clk 0:00:03.1]} 41. Ka3 {[%clk 0:01:29.6]} 41... g5
{[%clk 0:00:03.1]} 42. a5 {[%clk 0:01:30]} 42... Rf8 {[%clk 0:00:01.8]} 43. b4
{[%clk 0:01:28.8]} 43... h5 {[%clk 0:00:01.8]} 44. Rd5 {[%clk 0:01:26.5]} 44...
Rg8 {[%clk 0:00:01.1]} 45. a6 {[%clk 0:01:25]} 45... h4 {[%clk 0:00:02]} 46. h3
{[%clk 0:01:23.8]} 46... g4 {[%clk 0:00:02.9]} 47. hxg4 {[%clk 0:01:23.3]} 47...
Rh8 {[%clk 0:00:03.5]} 48. a7 {[%clk 0:01:21.9]} 48... h3 {[%clk 0:00:03.8]} 49.
Rd2 {[%clk 0:01:22.5]} 49... Kc6 {[%clk 0:00:02.2]} 50. d7 {[%clk 0:01:21.3]}
50... Kb7 {[%clk 0:00:01.4]} 51. d8=Q {[%clk 0:01:20.5]} 1-0

[Event "Late-Titled-Tuesday-Blitz-June-18-2024"]
[Site "Chess.com"]
[Date "2024.06.18"]
[Round "4"]
[White "Igor_Lysyj"]
[Black "Hikaru"]
[Result "0-1"]
[WhiteElo "2843"]
[BlackElo "3294"]
[TimeControl "180+1"]
[EndTime "14:41:32 PDT"]
[Termination "Hikaru won by resignation"]

1. d4 {[%clk 0:02:59.2]} 1... Nf6 {[%clk 0:02:55.7]} 2. c4 {[%clk 0:02:59.1]}
2... b6 {[%clk 0:02:54.4]} 3. Nc3 {[%clk 0:02:55.5]} 3... Bb7 {[%clk 0:02:52.5]}
4. Nf3 {[%clk 0:02:52]} 4... d5 {[%clk 0:02:50.3]} 5. a3 {[%clk 0:02:50.2]} 5...
e6 {[%clk 0:02:41.6]} 6. Bf4 {[%clk 0:02:49]} 6... dxc4 {[%clk 0:02:37.1]} 7. e3
{[%clk 0:02:48.4]} 7... a6 {[%clk 0:02:33.1]} 8. Bxc4 {[%clk 0:02:46.5]} 8... b5
{[%clk 0:02:32.8]} 9. Ba2 {[%clk 0:02:46.6]} 9... Nbd7 {[%clk 0:02:32.8]} 10. d5
{[%clk 0:02:38.3]} 10... Nc5 {[%clk 0:02:27.6]} 11. dxe6 {[%clk 0:02:32.9]}
11... Nd3+ {[%clk 0:02:03.2]} 12. Ke2 {[%clk 0:02:20.1]} 12... Nxf4+ {[%clk
0:02:02.8]} 13. exf4 {[%clk 0:02:20.4]} 13... fxe6 {[%clk 0:01:53.3]} 14. Qxd8+
{[%clk 0:01:46.3]} 14... Rxd8 {[%clk 0:01:54.2]} 15. Rhe1 {[%clk 0:01:45.8]}
15... Bd6 {[%clk 0:01:44.9]} 16. g3 {[%clk 0:01:45.8]} 16... Nd5 {[%clk
0:01:42.8]} 17. Ng5 {[%clk 0:01:40.5]} 17... Rd7 {[%clk 0:01:26.2]} 18. Nxe6
{[%clk 0:01:35.6]} 18... Nxc3+ {[%clk 0:01:17.8]} 19. bxc3 {[%clk 0:01:35.5]}
19... Re7 {[%clk 0:01:18.5]} 20. Kf1 {[%clk 0:01:22]} 20... Kd7 {[%clk
0:01:18.2]} 21. Ng5 {[%clk 0:01:08.7]} 21... Rhe8 {[%clk 0:01:17.1]} 22. Rxe7+
{[%clk 0:00:49.9]} 22... Rxe7 {[%clk 0:01:18]} 23. Bb3 {[%clk 0:00:48.3]} 23...
c5 {[%clk 0:01:17.1]} 24. Nxh7 {[%clk 0:00:43.8]} 24... Be4 {[%clk 0:01:15]} 25.
Ng5 {[%clk 0:00:37.3]} 25... Bd3+ {[%clk 0:01:14.3]} 26. Kg1 {[%clk 0:00:37.5]}
26... c4 {[%clk 0:01:14.4]} 27. Ba2 {[%clk 0:00:35]} 27... Re2 {[%clk
0:00:59.8]} 28. Nf7 {[%clk 0:00:30.7]} 28... Bc5 {[%clk 0:00:42.5]} 29. Ne5+
{[%clk 0:00:29.7]} 29... Kc7 {[%clk 0:00:43]} 30. Nxd3 {[%clk 0:00:19.1]} 30...
cxd3 {[%clk 0:00:43.9]} 31. Bb3 {[%clk 0:00:16.3]} 31... Rxf2 {[%clk 0:00:42.7]}
32. Kh1 {[%clk 0:00:16.1]} 32... Re2 {[%clk 0:00:35.7]} 33. Rd1 {[%clk
0:00:13.8]} 33... d2 {[%clk 0:00:35.6]} 34. a4 {[%clk 0:00:13.9]} 34... bxa4
{[%clk 0:00:30.3]} 35. Bxa4 {[%clk 0:00:14.4]} 35... Be3 {[%clk 0:00:30.2]} 36.
h4 {[%clk 0:00:13.6]} 36... Kd6 {[%clk 0:00:30.3]} 37. h5 {[%clk 0:00:10.4]}
37... Kd5 {[%clk 0:00:29.5]} 38. f5 {[%clk 0:00:07.8]} 38... Kc4 {[%clk
0:00:28.6]} 39. g4 {[%clk 0:00:05.7]} 39... Kxc3 {[%clk 0:00:28.6]} 0-1

[Event "Late-Titled-Tuesday-Blitz-June-18-2024"]
[Site "Chess.com"]
[Date "2024.06.18"]
[Round "4"]
[White "Zurability"]
[Black "maximnovik"]
[Result "1-0"]
[WhiteElo "2796"]
[BlackElo "2573"]
[TimeControl "180+1"]
[EndTime "14:41:33 PDT"]
[Termination "Zurability won by resignation"]

1. e4 {[%clk 0:02:49.8]} 1... e5 {[%clk 0:02:59.6]} 2. Nf3 {[%clk 0:02:49.4]}
2... Nc6 {[%clk 0:03:00.1]} 3. Bc4 {[%clk 0:02:46.7]} 3... Nf6 {[%clk
0:02:59.1]} 4. d3 {[%clk 0:02:46.8]} 4... Bc5 {[%clk 0:02:58.9]} 5. c3 {[%clk
0:02:46.5]} 5... d6 {[%clk 0:02:59.2]} 6. h3 {[%clk 0:02:43.7]} 6... h6 {[%clk
0:02:58.3]} 7. Bb3 {[%clk 0:02:40.8]} 7... a6 {[%clk 0:02:57.9]} 8. Nbd2 {[%clk
0:02:40.8]} 8... Ba7 {[%clk 0:02:57.8]} 9. Nf1 {[%clk 0:02:41]} 9... Nh5 {[%clk
0:02:53.1]} 10. d4 {[%clk 0:02:23.9]} 10... O-O {[%clk 0:02:48.8]} 11. Be3
{[%clk 0:02:13.9]} 11... Qf6 {[%clk 0:02:36.5]} 12. d5 {[%clk 0:01:24.6]} 12...
Ne7 {[%clk 0:02:28.8]} 13. Bxa7 {[%clk 0:01:21.2]} 13... Rxa7 {[%clk 0:02:28.9]}
14. g3 {[%clk 0:01:18.7]} 14... g5 {[%clk 0:01:42.9]} 15. Ne3 {[%clk 0:01:11.4]}
15... Ng7 {[%clk 0:01:42.4]} 16. Bc2 {[%clk 0:01:01.7]} 16... Ra8 {[%clk
0:01:28.3]} 17. Qe2 {[%clk 0:00:58.4]} 17... Bd7 {[%clk 0:01:28]} 18. O-O-O
{[%clk 0:00:53.7]} 18... c6 {[%clk 0:01:26.9]} 19. dxc6 {[%clk 0:00:39.1]} 19...
bxc6 {[%clk 0:01:26.3]} 20. Ng4 {[%clk 0:00:39.5]} 20... Qg6 {[%clk 0:01:22.7]}
21. Ngxe5 {[%clk 0:00:25.1]} 21... Qe6 {[%clk 0:00:54.4]} 22. Nxd7 {[%clk
0:00:23.4]} 22... Qxd7 {[%clk 0:00:54.4]} 23. e5 {[%clk 0:00:20.6]} 23... d5
{[%clk 0:00:51.2]} 24. h4 {[%clk 0:00:19.6]} 24... g4 {[%clk 0:00:48.1]} 25. Nd4
{[%clk 0:00:20.2]} 25... c5 {[%clk 0:00:44.9]} 26. Qd3 {[%clk 0:00:20.1]} 26...
Ng6 {[%clk 0:00:39.1]} 27. h5 {[%clk 0:00:16.4]} 27... c4 {[%clk 0:00:20.4]} 28.
Qe3 {[%clk 0:00:16.1]} 28... Ne7 {[%clk 0:00:19.2]} 29. Qxh6 {[%clk 0:00:15.6]}
29... Nef5 {[%clk 0:00:18]} 30. Nxf5 {[%clk 0:00:14.2]} 30... Nxf5 {[%clk
0:00:18.1]} 31. Qg5+ {[%clk 0:00:14.6]} 31... Ng7 {[%clk 0:00:16.1]} 32. h6
{[%clk 0:00:13.6]} 32... f6 {[%clk 0:00:16.4]} 33. exf6 {[%clk 0:00:13.1]} 33...
Rxf6 {[%clk 0:00:14.9]} 34. Qxf6 {[%clk 0:00:11.9]} 34... Ne8 {[%clk 0:00:14.7]}
35. h7+ {[%clk 0:00:12.1]} 1-0

[Event "Late-Titled-Tuesday-Blitz-June-18-2024"]
[Site "Chess.com"]
[Date "2024.06.18"]
[Round "4"]
[White "Sanan_Sjugirov"]
[Black "ZverevLev"]
[Result "0-1"]
[WhiteElo "2955"]
[BlackElo "2733"]
[TimeControl "180+1"]
[EndTime "14:41:35 PDT"]
[Termination "ZverevLev won on time"]

1. d4 {[%clk 0:03:00.9]} 1... Nf6 {[%clk 0:02:59.8]} 2. Bg5 {[%clk 0:03:00.5]}
2... d5 {[%clk 0:02:59.5]} 3. e3 {[%clk 0:03:00.4]} 3... e6 {[%clk 0:02:59.3]}
4. Nd2 {[%clk 0:02:59.9]} 4... Be7 {[%clk 0:02:59.5]} 5. Bd3 {[%clk 0:03:00]}
5... O-O {[%clk 0:02:59.6]} 6. Ngf3 {[%clk 0:02:59.5]} 6... Nbd7 {[%clk
0:02:58.5]} 7. c3 {[%clk 0:02:56.3]} 7... c5 {[%clk 0:02:58.1]} 8. Ne5 {[%clk
0:02:36.5]} 8... Nxe5 {[%clk 0:02:52.1]} 9. dxe5 {[%clk 0:02:37.4]} 9... Nd7
{[%clk 0:02:52.9]} 10. Bf4 {[%clk 0:02:28.5]} 10... f5 {[%clk 0:02:38.7]} 11. h4
{[%clk 0:02:21.2]} 11... b6 {[%clk 0:02:28.1]} 12. Nf3 {[%clk 0:02:17.9]} 12...
Bb7 {[%clk 0:02:27.8]} 13. Qe2 {[%clk 0:02:04.7]} 13... a6 {[%clk 0:02:10.2]}
14. Ng5 {[%clk 0:01:55.5]} 14... Bxg5 {[%clk 0:02:06.1]} 15. hxg5 {[%clk
0:01:56.4]} 15... g6 {[%clk 0:02:04.5]} 16. Rh6 {[%clk 0:01:45.3]} 16... Rf7
{[%clk 0:02:03.2]} 17. g4 {[%clk 0:01:40.7]} 17... Nf8 {[%clk 0:02:01.5]} 18.
O-O-O {[%clk 0:01:37.7]} 18... Qd7 {[%clk 0:01:56.6]} 19. Bc2 {[%clk 0:01:32.3]}
19... b5 {[%clk 0:01:52.6]} 20. f3 {[%clk 0:01:07.5]} 20... a5 {[%clk
0:01:45.4]} 21. Bg3 {[%clk 0:00:57.4]} 21... b4 {[%clk 0:01:40.5]} 22. c4 {[%clk
0:00:38]} 22... fxg4 {[%clk 0:01:39.3]} 23. fxg4 {[%clk 0:00:32.8]} 23... d4
{[%clk 0:01:39.4]} 24. e4 {[%clk 0:00:22.8]} 24... a4 {[%clk 0:01:38]} 25. Bd3
{[%clk 0:00:23]} 25... Qe7 {[%clk 0:01:34]} 26. Qd2 {[%clk 0:00:13.8]} 26... Rf3
{[%clk 0:01:33.7]} 27. Rh3 {[%clk 0:00:02.5]} 27... Qf7 {[%clk 0:01:18.5]} 28.
Rdh1 {[%clk 0:00:03.1]} 28... Re3 {[%clk 0:01:17.6]} 29. Bf2 {[%clk 0:00:02.2]}
29... Bxe4 {[%clk 0:01:08.7]} 30. Bxe4 {[%clk 0:00:01.7]} 30... Rxe4 {[%clk
0:01:09.6]} 31. Qd3 {[%clk 0:00:01.1]} 31... Rxe5 {[%clk 0:01:01.9]} 32. Rf3
{[%clk 0:00:01]} 32... Qb7 {[%clk 0:01:00.2]} 33. Rf1 {[%clk 0:00:01]} 33... Qe4
{[%clk 0:00:39.4]} 34. Qd1 {[%clk 0:00:01.1]} 34... b3 {[%clk 0:00:31.9]} 35. a3
{[%clk 0:00:01.3]} 35... Qe2 {[%clk 0:00:29.4]} 0-1

[Event "Late-Titled-Tuesday-Blitz-June-18-2024"]
[Site "Chess.com"]
[Date "2024.06.18"]
[Round "4"]
[White "FairChess_on_YouTube"]
[Black "Yaacovn"]
[Result "1-0"]
[WhiteElo "3095"]
[BlackElo "2795"]
[TimeControl "180+1"]
[EndTime "14:41:36 PDT"]
[Termination "FairChess_on_YouTube won by resignation"]

1. c4 {[%clk 0:03:00.9]} 1... b6 {[%clk 0:02:54]} 2. d4 {[%clk 0:02:56.3]} 2...
e6 {[%clk 0:02:53.9]} 3. Nc3 {[%clk 0:02:56.2]} 3... Bb4 {[%clk 0:02:53.4]} 4.
e4 {[%clk 0:02:53.9]} 4... Bb7 {[%clk 0:02:52.2]} 5. f3 {[%clk 0:02:53.9]} 5...
Ne7 {[%clk 0:02:49.1]} 6. Bd3 {[%clk 0:02:52.7]} 6... Bxc3+ {[%clk 0:02:44.5]}
7. bxc3 {[%clk 0:02:52.4]} 7... f5 {[%clk 0:02:42.9]} 8. Bg5 {[%clk 0:02:30.9]}
8... fxe4 {[%clk 0:02:15.7]} 9. fxe4 {[%clk 0:02:31.8]} 9... O-O {[%clk
0:02:14.6]} 10. Qh5 {[%clk 0:02:27.9]} 10... Qe8 {[%clk 0:01:14.7]} 11. Qxe8
{[%clk 0:02:23.1]} 11... Rxe8 {[%clk 0:01:14.3]} 12. Nf3 {[%clk 0:02:20.1]}
12... d6 {[%clk 0:01:14.3]} 13. c5 {[%clk 0:02:16.9]} 13... Nd7 {[%clk
0:01:11.8]} 14. cxd6 {[%clk 0:02:16.5]} 14... cxd6 {[%clk 0:01:11.8]} 15. Kd2
{[%clk 0:02:15.9]} 15... h6 {[%clk 0:01:10.7]} 16. Bh4 {[%clk 0:02:07.2]} 16...
Ng6 {[%clk 0:01:09.2]} 17. Bg3 {[%clk 0:02:07.2]} 17... e5 {[%clk 0:01:03.8]}
18. d5 {[%clk 0:02:04.8]} 18... Nc5 {[%clk 0:01:01.3]} 19. Bc2 {[%clk
0:02:03.3]} 19... Rf8 {[%clk 0:01:00.5]} 20. a4 {[%clk 0:01:56.2]} 20... Nf4
{[%clk 0:01:00.1]} 21. Ne1 {[%clk 0:01:51]} 21... Rac8 {[%clk 0:00:51.7]} 22. a5
{[%clk 0:01:49.8]} 22... b5 {[%clk 0:00:51.8]} 23. Rf1 {[%clk 0:01:40.8]} 23...
g5 {[%clk 0:00:43.1]} 24. Bf2 {[%clk 0:01:28.4]} 24... a6 {[%clk 0:00:41.1]} 25.
Bxc5 {[%clk 0:01:26.1]} 25... Rxc5 {[%clk 0:00:40]} 26. g3 {[%clk 0:01:22.9]}
26... Nh5 {[%clk 0:00:38]} 27. Nd3 {[%clk 0:01:19.9]} 27... Rcc8 {[%clk
0:00:36.1]} 28. Nb4 {[%clk 0:01:15.8]} 28... Nf6 {[%clk 0:00:35.4]} 29. Bd3
{[%clk 0:01:15.6]} 29... Kg7 {[%clk 0:00:33.9]} 30. Rac1 {[%clk 0:01:08.4]}
30... Ng4 {[%clk 0:00:30.5]} 31. Be2 {[%clk 0:00:59.6]} 31... Nxh2 {[%clk
0:00:24.8]} 32. Rxf8 {[%clk 0:00:59.6]} 32... Rxf8 {[%clk 0:00:24.6]} 33. c4
{[%clk 0:01:00.3]} 33... bxc4 {[%clk 0:00:18.3]} 34. Rxc4 {[%clk 0:01:00.1]}
34... Bc8 {[%clk 0:00:16.2]} 35. Rc7+ {[%clk 0:00:56.5]} 35... Kg6 {[%clk
0:00:16]} 36. Rc6 {[%clk 0:00:56.9]} 36... Rd8 {[%clk 0:00:14.6]} 37. Nxa6
{[%clk 0:00:50.2]} 37... h5 {[%clk 0:00:14]} 38. Nc5 {[%clk 0:00:37.2]} 38... h4
{[%clk 0:00:13.8]} 39. gxh4 {[%clk 0:00:37.3]} 39... gxh4 {[%clk 0:00:14.7]} 40.
a6 {[%clk 0:00:37.8]} 40... h3 {[%clk 0:00:12.6]} 41. a7 {[%clk 0:00:37.4]}
41... Bg4 {[%clk 0:00:12.8]} 42. Rxd6+ {[%clk 0:00:33.9]} 1-0

[Event "Late-Titled-Tuesday-Blitz-June-18-2024"]
[Site "Chess.com"]
[Date "2024.06.18"]
[Round "4"]
[White "Aygehovit1992"]
[Black "Lady_Nika"]
[Result "1-0"]
[WhiteElo "2794"]
[BlackElo "2519"]
[TimeControl "180+1"]
[EndTime "14:41:36 PDT"]
[Termination "Aygehovit1992 won by resignation"]

1. e4 {[%clk 0:03:00.4]} 1... c5 {[%clk 0:02:59.6]} 2. Nc3 {[%clk 0:03:00.7]}
2... e6 {[%clk 0:02:59.9]} 3. d4 {[%clk 0:03:00.1]} 3... cxd4 {[%clk 0:03:00.1]}
4. Qxd4 {[%clk 0:03:01]} 4... Nc6 {[%clk 0:03:00.8]} 5. Qe3 {[%clk 0:03:01.7]}
5... a6 {[%clk 0:03:01.3]} 6. Qg3 {[%clk 0:03:01.2]} 6... g6 {[%clk 0:02:59.3]}
7. Bf4 {[%clk 0:02:50.9]} 7... Bg7 {[%clk 0:02:55.8]} 8. O-O-O {[%clk
0:02:48.2]} 8... Qa5 {[%clk 0:02:47.4]} 9. Bc7 {[%clk 0:02:40.2]} 9... Qb4
{[%clk 0:02:30.7]} 10. Bd6 {[%clk 0:02:36.6]} 10... Qa5 {[%clk 0:02:30.5]} 11.
Nge2 {[%clk 0:02:34.7]} 11... Nge7 {[%clk 0:02:28.9]} 12. h4 {[%clk 0:02:34.7]}
12... h5 {[%clk 0:02:28.4]} 13. f4 {[%clk 0:02:29.2]} 13... b5 {[%clk
0:02:21.3]} 14. Qg5 {[%clk 0:01:44.9]} 14... f6 {[%clk 0:02:07.4]} 15. Qc5
{[%clk 0:01:42.1]} 15... Bb7 {[%clk 0:01:49.8]} 16. Nd4 {[%clk 0:01:18.5]} 16...
Nxd4 {[%clk 0:01:36.5]} 17. Rxd4 {[%clk 0:00:52.9]} 17... Rc8 {[%clk 0:01:31.9]}
18. Ra4 {[%clk 0:00:38.6]} 18... Rxc5 {[%clk 0:01:19.9]} 19. Rxa5 {[%clk
0:00:38.5]} 19... Rc6 {[%clk 0:01:19.1]} 20. Ba3 {[%clk 0:00:36.2]} 20... Bh6
{[%clk 0:01:10.2]} 21. g3 {[%clk 0:00:35.9]} 21... e5 {[%clk 0:01:07.1]} 22.
Nxb5 {[%clk 0:00:35.2]} 22... axb5 {[%clk 0:01:03.9]} 23. Bxb5 {[%clk
0:00:36.1]} 23... exf4 {[%clk 0:00:54.6]} 24. gxf4 {[%clk 0:00:30.4]} 24...
Bxf4+ {[%clk 0:00:54.4]} 25. Kb1 {[%clk 0:00:31]} 25... Rc7 {[%clk 0:00:44.6]}
26. Rd1 {[%clk 0:00:30.6]} 26... Bxe4 {[%clk 0:00:39.1]} 27. Ba4 {[%clk
0:00:22.7]} 27... Kf7 {[%clk 0:00:23.8]} 28. Bb3+ {[%clk 0:00:20.8]} 28... d5
{[%clk 0:00:20.8]} 29. Ra4 {[%clk 0:00:21.2]} 29... f5 {[%clk 0:00:18.8]} 30.
Rf1 {[%clk 0:00:19.9]} 30... Be5 {[%clk 0:00:17.7]} 31. Rxe4 {[%clk 0:00:19.3]}
31... Bf6 {[%clk 0:00:17.1]} 32. Re2 {[%clk 0:00:13.1]} 32... Rb8 {[%clk
0:00:12.5]} 33. Bd6 {[%clk 0:00:12.3]} 1-0

[Event "Late-Titled-Tuesday-Blitz-June-18-2024"]
[Site "Chess.com"]
[Date "2024.06.18"]
[Round "4"]
[White "LaStreetCmaMaison"]
[Black "SpeedofLight0"]
[Result "0-1"]
[WhiteElo "2617"]
[BlackElo "3030"]
[TimeControl "180+1"]
[EndTime "14:41:37 PDT"]
[Termination "SpeedofLight0 won by checkmate"]

1. c4 {[%clk 0:03:00.9]} 1... b6 {[%clk 0:02:56]} 2. e4 {[%clk 0:02:58.7]} 2...
Bb7 {[%clk 0:02:56.6]} 3. Nc3 {[%clk 0:02:59.2]} 3... e5 {[%clk 0:02:55.2]} 4.
Nf3 {[%clk 0:02:59.5]} 4... Nc6 {[%clk 0:02:54.6]} 5. d4 {[%clk 0:02:58.5]} 5...
exd4 {[%clk 0:02:54.7]} 6. Nxd4 {[%clk 0:02:59.4]} 6... Bb4 {[%clk 0:02:54.9]}
7. Nf5 {[%clk 0:02:49.6]} 7... Qf6 {[%clk 0:02:52.6]} 8. Bd2 {[%clk 0:02:45]}
8... Nge7 {[%clk 0:02:51.8]} 9. a3 {[%clk 0:02:23.3]} 9... Bc5 {[%clk
0:02:47.2]} 10. b4 {[%clk 0:02:16.7]} 10... Nxf5 {[%clk 0:02:45.9]} 11. bxc5
{[%clk 0:02:14.3]} 11... Nh4 {[%clk 0:02:46.1]} 12. Nd5 {[%clk 0:02:11.3]} 12...
Qe5 {[%clk 0:02:46]} 13. Qb1 {[%clk 0:01:28.2]} 13... O-O-O {[%clk 0:02:42.4]}
14. cxb6 {[%clk 0:01:23.6]} 14... axb6 {[%clk 0:02:39.4]} 15. Bf4 {[%clk
0:01:20.6]} 15... Qd4 {[%clk 0:02:36.1]} 16. Bxc7 {[%clk 0:01:20.2]} 16... Rhe8
{[%clk 0:02:35.9]} 17. f3 {[%clk 0:01:17]} 17... Ne5 {[%clk 0:02:17.3]} 18. Bxb6
{[%clk 0:01:03.6]} 18... Nexf3+ {[%clk 0:01:54.2]} 19. gxf3 {[%clk 0:01:04.5]}
19... Nxf3+ {[%clk 0:01:54.4]} 20. Ke2 {[%clk 0:01:05.2]} 20... Rxe4+ {[%clk
0:01:20.5]} 21. Kxf3 {[%clk 0:00:39.9]} 21... Rf4+ {[%clk 0:01:12.9]} 22. Kg3
{[%clk 0:00:31.7]} 22... Rg4+ {[%clk 0:01:08.1]} 23. Kh3 {[%clk 0:00:19]} 23...
Rh4+ {[%clk 0:01:01]} 24. Kg3 {[%clk 0:00:19.7]} 24... Rg4+ {[%clk 0:00:41.7]}
25. Kh3 {[%clk 0:00:19.6]} 25... Rh4+ {[%clk 0:00:25.5]} 26. Kg3 {[%clk
0:00:20.3]} 26... Qg4+ {[%clk 0:00:26.1]} 27. Kf2 {[%clk 0:00:20.8]} 27... Re8
{[%clk 0:00:27]} 28. Qd3 {[%clk 0:00:12.5]} 28... Rh5 {[%clk 0:00:26.4]} 29. Bg2
{[%clk 0:00:04.8]} 29... Rf5+ {[%clk 0:00:23.7]} 30. Kg1 {[%clk 0:00:05.3]}
30... Re2 {[%clk 0:00:24.3]} 31. Qh3 {[%clk 0:00:02.1]} 31... Qg6 {[%clk
0:00:18.1]} 32. Rf1 {[%clk 0:00:01.6]} 32... Bxd5 {[%clk 0:00:11.3]} 33. cxd5
{[%clk 0:00:01.7]} 33... Qxb6+ {[%clk 0:00:10.9]} 34. Rf2 {[%clk 0:00:01.1]}
34... Qxf2# {[%clk 0:00:10.7]} 0-1

[Event "Late-Titled-Tuesday-Blitz-June-18-2024"]
[Site "Chess.com"]
[Date "2024.06.18"]
[Round "4"]
[White "Viktor_Poddubnyi"]
[Black "fabianvivasz"]
[Result "1-0"]
[WhiteElo "2349"]
[BlackElo "2489"]
[TimeControl "180+1"]
[EndTime "14:41:37 PDT"]
[Termination "Viktor_Poddubnyi won on time"]

1. e4 {[%clk 0:03:00]} 1... e5 {[%clk 0:02:57.3]} 2. f4 {[%clk 0:02:59.7]} 2...
Nc6 {[%clk 0:02:57.8]} 3. Nf3 {[%clk 0:02:59.6]} 3... Bc5 {[%clk 0:01:41.3]} 4.
fxe5 {[%clk 0:02:57.3]} 4... Nd4 {[%clk 0:01:32.1]} 5. c3 {[%clk 0:02:43.6]}
5... Nxf3+ {[%clk 0:01:26.9]} 6. Qxf3 {[%clk 0:02:44.5]} 6... Qg5 {[%clk
0:01:19.1]} 7. h4 {[%clk 0:02:20.4]} 7... Qh6 {[%clk 0:01:13]} 8. g4 {[%clk
0:02:06.8]} 8... f6 {[%clk 0:00:51.8]} 9. g5 {[%clk 0:01:40.5]} 9... fxg5 {[%clk
0:00:50.8]} 10. d4 {[%clk 0:01:40.6]} 10... Be7 {[%clk 0:00:50.4]} 11. hxg5
{[%clk 0:01:39.5]} 11... Qg6 {[%clk 0:00:48.3]} 12. Qg2 {[%clk 0:01:13.5]} 12...
b6 {[%clk 0:00:36.8]} 13. Bf4 {[%clk 0:01:08.6]} 13... Bb7 {[%clk 0:00:36.3]}
14. Nd2 {[%clk 0:01:08.9]} 14... O-O-O {[%clk 0:00:32.3]} 15. O-O-O {[%clk
0:01:07.4]} 15... Qf7 {[%clk 0:00:30.7]} 16. Qg3 {[%clk 0:00:44]} 16... Qxa2
{[%clk 0:00:28.7]} 17. Bc4 {[%clk 0:00:44.1]} 17... Qa5 {[%clk 0:00:23.1]} 18.
Kc2 {[%clk 0:00:34.1]} 18... b5 {[%clk 0:00:06.8]} 19. Ra1 {[%clk 0:00:22.4]}
19... Qb6 {[%clk 0:00:06.8]} 20. Bd5 {[%clk 0:00:21.7]} 20... Bxd5 {[%clk
0:00:04.8]} 21. exd5 {[%clk 0:00:20.7]} 21... Kb7 {[%clk 0:00:03.4]} 22. d6
{[%clk 0:00:17.8]} 22... cxd6 {[%clk 0:00:03.5]} 23. exd6 {[%clk 0:00:18.7]}
23... Bf8 {[%clk 0:00:04.2]} 24. Nb3 {[%clk 0:00:17.4]} 24... Rc8 {[%clk
0:00:02]} 25. Nc5+ {[%clk 0:00:16.1]} 25... Rxc5 {[%clk 0:00:01]} 26. dxc5
{[%clk 0:00:17]} 26... Qxc5 {[%clk 0:00:01.9]} 27. Rhe1 {[%clk 0:00:14.5]} 27...
Qf5+ {[%clk 0:00:01.6]} 28. Kc1 {[%clk 0:00:13]} 1-0